[Event "*** Titled Tuesday Blitz"]
[Site "Chess.com"]
[Date "2020.10.20"]
[Round "11"]
[White "Wilver92"]
[Black "pedro_nascimento85"]
[Result "1-0"]
[WhiteElo "2401"]
[BlackElo "2006"]
[TimeControl "180+1"]
[EndTime "12:06:08 PDT"]
[Termination "Wilver92 won by resignation"]

1. e4 {[%clk 0:03:00]} 1... e6 {[%clk 0:02:53.1]} 2. d4 {[%clk 0:02:59.5]} 2...
d5 {[%clk 0:02:52.6]} 3. Nc3 {[%clk 0:03:00.3]} 3... Bb4 {[%clk 0:02:51]} 4. e5
{[%clk 0:03:00.3]} 4... Ne7 {[%clk 0:02:49.8]} 5. a3 {[%clk 0:03:01.2]} 5...
Bxc3+ {[%clk 0:02:49.8]} 6. bxc3 {[%clk 0:03:02.1]} 6... c5 {[%clk 0:02:50.5]}
7. Qg4 {[%clk 0:03:01.5]} 7... O-O {[%clk 0:02:48.4]} 8. Bd3 {[%clk 0:03:01.1]}
8... f5 {[%clk 0:02:47.6]} 9. exf6 {[%clk 0:03:00.4]} 9... Rxf6 {[%clk
0:02:47.6]} 10. Nf3 {[%clk 0:03:00.7]} 10... Nbc6 {[%clk 0:02:46.6]} 11. Bg5
{[%clk 0:02:45.3]} 11... e5 {[%clk 0:02:40.9]} 12. Bxh7+ {[%clk 0:02:40.5]}
12... Kxh7 {[%clk 0:02:39.7]} 13. Qh4+ {[%clk 0:02:40.7]} 13... Rh6 {[%clk
0:02:38.8]} 14. Bxh6 {[%clk 0:02:40.8]} 14... gxh6 {[%clk 0:02:38.5]} 15. dxe5
{[%clk 0:02:40.2]} 15... Ng6 {[%clk 0:02:35.1]} 16. Qxd8 {[%clk 0:02:36.5]}
16... Nxd8 {[%clk 0:02:34.5]} 17. O-O-O {[%clk 0:02:37.4]} 17... Bg4 {[%clk
0:02:33.1]} 18. Rxd5 {[%clk 0:02:36.6]} 18... Bxf3 {[%clk 0:02:25.4]} 19. gxf3
{[%clk 0:02:37.1]} 19... b6 {[%clk 0:02:24.7]} 20. Rd7+ {[%clk 0:02:34.1]} 20...
Kh8 {[%clk 0:02:23.4]} 21. Rhd1 {[%clk 0:02:18.3]} 21... Ne6 {[%clk 0:02:15.6]}
22. R1d6 {[%clk 0:02:16.3]} 22... Nef4 {[%clk 0:02:10]} 23. e6 {[%clk
0:02:10.8]} 23... Re8 {[%clk 0:02:06.8]} 24. Rxa7 {[%clk 0:02:05.1]} 24... Nxe6
{[%clk 0:02:00.3]} 25. Rxb6 {[%clk 0:02:03.4]} 25... Ngf4 {[%clk 0:01:56.3]} 26.
Rbb7 {[%clk 0:02:00.2]} 26... h5 {[%clk 0:01:45.1]} 27. a4 {[%clk 0:01:58.2]}
27... Rd8 {[%clk 0:01:36.9]} 28. a5 {[%clk 0:01:56.1]} 28... Ne2+ {[%clk
0:01:30.2]} 29. Kb2 {[%clk 0:01:55.4]} 29... c4 {[%clk 0:01:21.6]} 30. a6 {[%clk
0:01:51.4]} 30... Nc5 {[%clk 0:01:21]} 31. Rh7+ {[%clk 0:01:51.1]} 31... Kg8
{[%clk 0:01:20.5]} 32. Rag7+ {[%clk 0:01:51.1]} 32... Kf8 {[%clk 0:01:20]} 33.
a7 {[%clk 0:01:50.1]} 33... Ra8 {[%clk 0:01:15.4]} 34. Rh8+ {[%clk 0:01:39.3]}
34... Kxg7 {[%clk 0:01:13.9]} 35. Rxa8 {[%clk 0:01:40.2]} 35... Nd7 {[%clk
0:01:11]} 1-0

[Event "*** Titled Tuesday Blitz"]
[Site "Chess.com"]
[Date "2020.10.20"]
[Round "11"]
[White "Sharpchess22"]
[Black "infinitegiantkiller"]
[Result "1-0"]
[WhiteElo "2772"]
[BlackElo "2406"]
[TimeControl "180+1"]
[EndTime "12:06:09 PDT"]
[Termination "Sharpchess22 won by resignation"]

1. d4 {[%clk 0:03:00.9]} 1... e6 {[%clk 0:03:00.9]} 2. e4 {[%clk 0:03:00]} 2...
d5 {[%clk 0:02:53.4]} 3. e5 {[%clk 0:02:59.7]} 3... c5 {[%clk 0:02:53]} 4. c3
{[%clk 0:02:59.6]} 4... Nc6 {[%clk 0:02:53.5]} 5. Nf3 {[%clk 0:02:59.5]} 5... f6
{[%clk 0:02:52.3]} 6. Bd3 {[%clk 0:02:58.3]} 6... f5 {[%clk 0:02:50.7]} 7. O-O
{[%clk 0:02:50.1]} 7... Nh6 {[%clk 0:02:51.1]} 8. Bg5 {[%clk 0:02:37]} 8... Be7
{[%clk 0:02:48.6]} 9. Bxh6 {[%clk 0:02:33.1]} 9... gxh6 {[%clk 0:02:49.5]} 10.
Na3 {[%clk 0:02:24.3]} 10... O-O {[%clk 0:02:45]} 11. Nc2 {[%clk 0:02:23.8]}
11... Kh8 {[%clk 0:02:45.2]} 12. Re1 {[%clk 0:02:23]} 12... Rg8 {[%clk
0:02:45.2]} 13. a3 {[%clk 0:02:18.5]} 13... Bd7 {[%clk 0:02:43.9]} 14. b4 {[%clk
0:02:16.6]} 14... b6 {[%clk 0:02:43.7]} 15. Qd2 {[%clk 0:02:12]} 15... Bg5
{[%clk 0:02:33.5]} 16. Qd1 {[%clk 0:02:12.1]} 16... Qf8 {[%clk 0:02:32]} 17. g3
{[%clk 0:02:03]} 17... Be7 {[%clk 0:02:24.6]} 18. Ne3 {[%clk 0:01:56.3]} 18...
Qg7 {[%clk 0:02:19.3]} 19. Ng2 {[%clk 0:01:55.9]} 19... a5 {[%clk 0:02:15]} 20.
b5 {[%clk 0:01:54.7]} 20... Nd8 {[%clk 0:02:15.4]} 21. a4 {[%clk 0:01:52.9]}
21... Nf7 {[%clk 0:02:15.4]} 22. c4 {[%clk 0:01:44.5]} 22... cxd4 {[%clk
0:02:11.3]} 23. cxd5 {[%clk 0:01:43.6]} 23... exd5 {[%clk 0:02:10.7]} 24. e6
{[%clk 0:01:42.4]} 24... Bxe6 {[%clk 0:02:06.1]} 25. Rxe6 {[%clk 0:01:41.8]}
25... Bc5 {[%clk 0:02:06.5]} 26. Bxf5 {[%clk 0:01:37.2]} 26... Nd6 {[%clk
0:02:06.7]} 27. Bd3 {[%clk 0:01:34.7]} 27... Nc4 {[%clk 0:02:05.1]} 28. Qe2
{[%clk 0:01:32.9]} 28... Rad8 {[%clk 0:01:59.3]} 29. Rd1 {[%clk 0:01:30.3]}
29... Nd6 {[%clk 0:01:46.9]} 30. Nfh4 {[%clk 0:01:30.1]} 30... Rge8 {[%clk
0:01:45.7]} 31. Nf5 {[%clk 0:01:26.4]} 31... Qg5 {[%clk 0:01:18.9]} 32. Nxd6
{[%clk 0:01:23.8]} 32... Rxe6 {[%clk 0:01:16.8]} 33. Nf7+ {[%clk 0:01:22.7]}
33... Kg7 {[%clk 0:01:17.2]} 34. Qxe6 {[%clk 0:01:22]} 34... Rf8 {[%clk
0:01:11.5]} 35. Nxg5 {[%clk 0:01:21]} 1-0

[Event "*** Titled Tuesday Blitz"]
[Site "Chess.com"]
[Date "2020.10.20"]
[Round "11"]
[White "PhileKhoob"]
[Black "AsaHoffmann"]
[Result "1-0"]
[WhiteElo "2533"]
[BlackElo "2380"]
[TimeControl "180+1"]
[EndTime "12:06:13 PDT"]
[Termination "PhileKhoob won by resignation"]

1. e4 {[%clk 0:03:00.8]} 1... d6 {[%clk 0:02:59.1]} 2. d4 {[%clk 0:03:00.4]}
2... Nf6 {[%clk 0:02:58.6]} 3. Nc3 {[%clk 0:03:00.3]} 3... c6 {[%clk 0:02:58.2]}
4. Nf3 {[%clk 0:03:00.6]} 4... Bg4 {[%clk 0:02:57.4]} 5. h3 {[%clk 0:03:01.1]}
5... Bh5 {[%clk 0:02:56.8]} 6. g4 {[%clk 0:03:01.5]} 6... Bg6 {[%clk 0:02:56.5]}
7. Qe2 {[%clk 0:03:02]} 7... e6 {[%clk 0:02:56.4]} 8. Bg2 {[%clk 0:03:02.5]}
8... d5 {[%clk 0:02:56.2]} 9. e5 {[%clk 0:03:01.8]} 9... Ne4 {[%clk 0:02:56.2]}
10. O-O {[%clk 0:03:00.6]} 10... Nxc3 {[%clk 0:02:55.4]} 11. bxc3 {[%clk
0:03:00.6]} 11... Be7 {[%clk 0:02:50.6]} 12. c4 {[%clk 0:02:59.9]} 12... dxc4
{[%clk 0:02:45.3]} 13. Qxc4 {[%clk 0:02:59.5]} 13... Nd7 {[%clk 0:02:45.2]} 14.
a4 {[%clk 0:02:56.1]} 14... Nb6 {[%clk 0:02:44.6]} 15. Qb3 {[%clk 0:02:55.2]}
15... Rb8 {[%clk 0:02:41.4]} 16. c4 {[%clk 0:02:50.2]} 16... O-O {[%clk
0:02:32.3]} 17. Be3 {[%clk 0:02:49.9]} 17... Qc7 {[%clk 0:02:27.5]} 18. Nd2
{[%clk 0:02:38.2]} 18... Rfd8 {[%clk 0:02:23.8]} 19. Ne4 {[%clk 0:02:38.1]}
19... Nd7 {[%clk 0:02:20.1]} 20. f4 {[%clk 0:02:22.8]} 20... Bxe4 {[%clk
0:02:19.5]} 21. Bxe4 {[%clk 0:02:22.6]} 21... a5 {[%clk 0:02:13.4]} 22. Qc2
{[%clk 0:02:14.9]} 22... h6 {[%clk 0:02:11.5]} 23. f5 {[%clk 0:02:14.7]} 23...
c5 {[%clk 0:02:05.5]} 24. d5 {[%clk 0:01:54.5]} 24... Qxe5 {[%clk 0:01:59.1]}
25. fxe6 {[%clk 0:01:45.1]} 25... Qg3+ {[%clk 0:01:57.8]} 26. Kh1 {[%clk
0:01:38.8]} 26... Qxh3+ {[%clk 0:01:55.5]} 27. Qh2 {[%clk 0:01:35.5]} 27... Qxe3
{[%clk 0:01:52.5]} 28. Rae1 {[%clk 0:01:29.5]} 28... Qd4 {[%clk 0:01:20.4]} 29.
exd7 {[%clk 0:01:14]} 29... Rxd7 {[%clk 0:01:20]} 30. Qxb8+ {[%clk 0:01:13]} 1-0

[Event "*** Titled Tuesday Blitz"]
[Site "Chess.com"]
[Date "2020.10.20"]
[Round "11"]
[White "OsorioFernando"]
[Black "shnitez"]
[Result "1-0"]
[WhiteElo "2290"]
[BlackElo "2415"]
[TimeControl "180+1"]
[EndTime "12:06:30 PDT"]
[Termination "OsorioFernando won by resignation"]

1. e4 {[%clk 0:02:59.7]} 1... c5 {[%clk 0:02:58.9]} 2. Nc3 {[%clk 0:02:59.5]}
2... e6 {[%clk 0:02:56.2]} 3. g3 {[%clk 0:03:00.4]} 3... d5 {[%clk 0:02:48.4]}
4. Bg2 {[%clk 0:03:01.3]} 4... d4 {[%clk 0:02:47.8]} 5. Nb1 {[%clk 0:03:00.6]}
5... e5 {[%clk 0:02:47.3]} 6. d3 {[%clk 0:03:00.2]} 6... Nc6 {[%clk 0:02:45.8]}
7. Ne2 {[%clk 0:03:00.4]} 7... Bd6 {[%clk 0:02:42.6]} 8. Nd2 {[%clk 0:02:57.8]}
8... Nge7 {[%clk 0:02:40.8]} 9. Nc4 {[%clk 0:02:57.2]} 9... Bc7 {[%clk
0:02:40.8]} 10. a4 {[%clk 0:02:56.3]} 10... b6 {[%clk 0:02:40]} 11. O-O {[%clk
0:02:55.6]} 11... h5 {[%clk 0:02:33]} 12. h3 {[%clk 0:02:55]} 12... h4 {[%clk
0:02:32.2]} 13. g4 {[%clk 0:02:54.8]} 13... Ng6 {[%clk 0:02:31]} 14. f4 {[%clk
0:02:51.1]} 14... Nxf4 {[%clk 0:02:29]} 15. Nxf4 {[%clk 0:02:52]} 15... exf4
{[%clk 0:02:29.9]} 16. Bxf4 {[%clk 0:02:52]} 16... Bxf4 {[%clk 0:02:30.3]} 17.
Rxf4 {[%clk 0:02:52.9]} 17... O-O {[%clk 0:02:04.9]} 18. e5 {[%clk 0:02:43.9]}
18... Rb8 {[%clk 0:02:03.2]} 19. Bxc6 {[%clk 0:02:42.7]} 19... Be6 {[%clk
0:01:53.4]} 20. Qf3 {[%clk 0:02:33]} 20... Qg5 {[%clk 0:01:38.7]} 21. Rf1 {[%clk
0:02:27.5]} 21... Rbd8 {[%clk 0:01:11.5]} 22. b3 {[%clk 0:02:25.5]} 22... Kh8
{[%clk 0:00:45]} 23. Qf2 {[%clk 0:02:14.2]} 23... Kg8 {[%clk 0:00:38.2]} 24. Be4
{[%clk 0:02:10.9]} 24... Kh8 {[%clk 0:00:34.1]} 25. Bg2 {[%clk 0:02:07.6]} 25...
Kg8 {[%clk 0:00:33.5]} 26. Kh1 {[%clk 0:02:05.9]} 26... Kh8 {[%clk 0:00:32.9]}
27. Nd6 {[%clk 0:02:04]} 27... Kg8 {[%clk 0:00:28.7]} 28. Nxf7 {[%clk
0:02:00.9]} 28... Qe7 {[%clk 0:00:06.8]} 29. Nxd8 {[%clk 0:01:58.9]} 1-0

[Event "*** Titled Tuesday Blitz"]
[Site "Chess.com"]
[Date "2020.10.20"]
[Round "11"]
[White "Oleksandr_Bortnyk"]
[Black "dretch"]
[Result "1-0"]
[WhiteElo "2894"]
[BlackElo "2813"]
[TimeControl "180+1"]
[EndTime "12:06:38 PDT"]
[Termination "Oleksandr_Bortnyk won by resignation"]

1. d4 {[%clk 0:03:00.2]} 1... d5 {[%clk 0:02:59.6]} 2. Nc3 {[%clk 0:03:00.4]}
2... Nf6 {[%clk 0:02:58.2]} 3. Bg5 {[%clk 0:03:00.9]} 3... e6 {[%clk 0:02:58.5]}
4. e4 {[%clk 0:03:01.1]} 4... dxe4 {[%clk 0:02:58.7]} 5. Nxe4 {[%clk 0:03:01.1]}
5... Be7 {[%clk 0:02:59.1]} 6. Bxf6 {[%clk 0:02:58.7]} 6... Bxf6 {[%clk
0:03:00]} 7. Nf3 {[%clk 0:02:59.1]} 7... Nd7 {[%clk 0:02:59.9]} 8. Bd3 {[%clk
0:02:59.1]} 8... c5 {[%clk 0:02:59.1]} 9. Qd2 {[%clk 0:02:59.5]} 9... O-O {[%clk
0:02:53.7]} 10. O-O-O {[%clk 0:02:57.9]} 10... cxd4 {[%clk 0:02:53.7]} 11. g4
{[%clk 0:02:57.3]} 11... Qc7 {[%clk 0:02:49]} 12. g5 {[%clk 0:02:56.9]} 12...
Be5 {[%clk 0:02:47.3]} 13. Kb1 {[%clk 0:02:57]} 13... Rd8 {[%clk 0:02:41.3]} 14.
h4 {[%clk 0:02:55.3]} 14... b6 {[%clk 0:02:37.3]} 15. h5 {[%clk 0:02:54.9]}
15... Bb7 {[%clk 0:02:35.9]} 16. g6 {[%clk 0:02:55.5]} 16... fxg6 {[%clk
0:02:19.9]} 17. hxg6 {[%clk 0:02:56.4]} 17... h6 {[%clk 0:02:17.1]} 18. Nfg5
{[%clk 0:02:24.7]} 18... Nf8 {[%clk 0:02:06]} 19. Rdg1 {[%clk 0:02:06.6]} 19...
Bf4 {[%clk 0:01:59]} 20. Qe2 {[%clk 0:02:02.9]} 20... Bxg5 {[%clk 0:01:56]} 21.
Rxg5 {[%clk 0:02:02.4]} 21... Rd5 {[%clk 0:01:17.5]} 22. Rg4 {[%clk 0:01:40.9]}
22... Rc8 {[%clk 0:01:03.6]} 23. Nf6+ {[%clk 0:01:25.3]} 23... gxf6 {[%clk
0:01:03.2]} 24. g7 {[%clk 0:01:26.2]} 24... Nh7 {[%clk 0:00:22.2]} 25. Qxe6+
{[%clk 0:01:17.6]} 1-0

[Event "*** Titled Tuesday Blitz"]
[Site "Chess.com"]
[Date "2020.10.20"]
[Round "11"]
[White "ChelsieMonica"]
[Black "Ajedrez_con_German"]
[Result "0-1"]
[WhiteElo "2347"]
[BlackElo "2445"]
[TimeControl "180+1"]
[EndTime "12:06:52 PDT"]
[Termination "Ajedrez_con_German won by resignation"]

1. e4 {[%clk 0:02:59]} 1... e6 {[%clk 0:03:00]} 2. f4 {[%clk 0:02:59.9]} 2... d5
{[%clk 0:02:59.6]} 3. e5 {[%clk 0:02:59.4]} 3... c5 {[%clk 0:03:00]} 4. Nf3
{[%clk 0:03:00.3]} 4... Nc6 {[%clk 0:03:00.1]} 5. Bb5 {[%clk 0:02:58.7]} 5...
Ne7 {[%clk 0:02:59.5]} 6. Bxc6+ {[%clk 0:02:59.6]} 6... Nxc6 {[%clk 0:02:59.3]}
7. Rg1 {[%clk 0:03:00.5]} 7... Be7 {[%clk 0:02:56.3]} 8. c3 {[%clk 0:02:59.7]}
8... O-O {[%clk 0:02:53.4]} 9. d4 {[%clk 0:03:00.6]} 9... f6 {[%clk 0:02:52.2]}
10. Rf1 {[%clk 0:02:57.1]} 10... cxd4 {[%clk 0:02:51.4]} 11. cxd4 {[%clk
0:02:56.9]} 11... Bd7 {[%clk 0:02:48.9]} 12. Kf2 {[%clk 0:02:55.3]} 12... Be8
{[%clk 0:02:26.3]} 13. Kg1 {[%clk 0:02:52.8]} 13... Bh5 {[%clk 0:02:25.6]} 14.
Be3 {[%clk 0:02:52.4]} 14... Qb6 {[%clk 0:02:16.7]} 15. Qb3 {[%clk 0:02:31.8]}
15... fxe5 {[%clk 0:02:03.4]} 16. dxe5 {[%clk 0:02:25.6]} 16... Bc5 {[%clk
0:01:45.8]} 17. Qxb6 {[%clk 0:02:13.7]} 17... axb6 {[%clk 0:01:46.7]} 18. Bxc5
{[%clk 0:02:12.7]} 18... bxc5 {[%clk 0:01:47]} 19. Nc3 {[%clk 0:02:13.6]} 19...
Rxf4 {[%clk 0:01:39.1]} 20. a3 {[%clk 0:01:36.4]} 20... Bxf3 {[%clk 0:01:34.2]}
21. gxf3 {[%clk 0:01:35.8]} 21... Nxe5 {[%clk 0:01:29.7]} 22. Kg2 {[%clk
0:01:36.7]} 22... Raf8 {[%clk 0:01:21.2]} 23. Rae1 {[%clk 0:01:36.6]} 23... Nxf3
{[%clk 0:01:20.4]} 24. Rxe6 {[%clk 0:01:36.3]} 24... Nh4+ {[%clk 0:01:17]} 25.
Kg3 {[%clk 0:01:36.3]} 25... Rxf1 {[%clk 0:01:13.6]} 26. Kxh4 {[%clk 0:01:37.2]}
26... d4 {[%clk 0:01:10.2]} 27. Nd5 {[%clk 0:01:37.6]} 27... Rd8 {[%clk
0:00:53.1]} 28. Ne7+ {[%clk 0:01:34.9]} 28... Kh8 {[%clk 0:00:52.8]} 29. Kg3
{[%clk 0:01:30]} 29... d3 {[%clk 0:00:49.1]} 30. Nd5 {[%clk 0:01:30.2]} 30... d2
{[%clk 0:00:42.2]} 31. Ne3 {[%clk 0:01:21.4]} 31... Re1 {[%clk 0:00:31.8]} 32.
Kf2 {[%clk 0:01:18]} 32... Rxe3 {[%clk 0:00:31.6]} 0-1

[Event "*** Titled Tuesday Blitz"]
[Site "Chess.com"]
[Date "2020.10.20"]
[Round "11"]
[White "andresgv36"]
[Black "Gusarov91"]
[Result "0-1"]
[WhiteElo "2441"]
[BlackElo "2609"]
[TimeControl "180+1"]
[EndTime "12:06:56 PDT"]
[Termination "Gusarov91 won on time"]

1. d4 {[%clk 0:02:25]} 1... Nf6 {[%clk 0:02:57.5]} 2. Bf4 {[%clk 0:02:23.6]}
2... d6 {[%clk 0:02:56.9]} 3. Nc3 {[%clk 0:02:21.6]} 3... g6 {[%clk 0:02:54.5]}
4. e4 {[%clk 0:02:21.1]} 4... Bg7 {[%clk 0:02:54.3]} 5. Qd2 {[%clk 0:02:21.3]}
5... Nc6 {[%clk 0:02:51.4]} 6. O-O-O {[%clk 0:02:10]} 6... O-O {[%clk
0:02:48.9]} 7. f3 {[%clk 0:02:03.7]} 7... Nh5 {[%clk 0:02:45.9]} 8. Bh6 {[%clk
0:02:01.6]} 8... Bxd4 {[%clk 0:02:38.6]} 9. g4 {[%clk 0:01:49.7]} 9... Ng7
{[%clk 0:02:37.6]} 10. Nge2 {[%clk 0:01:41.5]} 10... Be5 {[%clk 0:02:33.7]} 11.
f4 {[%clk 0:01:30.2]} 11... Bxc3 {[%clk 0:02:26.1]} 12. Qxc3 {[%clk 0:01:22.2]}
12... e5 {[%clk 0:02:26.4]} 13. f5 {[%clk 0:01:06.8]} 13... Qh4 {[%clk
0:02:25.4]} 14. g5 {[%clk 0:00:50.5]} 14... gxf5 {[%clk 0:02:17.3]} 15. Ng3
{[%clk 0:00:23.3]} 15... f4 {[%clk 0:02:08]} 16. Be2 {[%clk 0:00:23.4]} 16...
Nd4 {[%clk 0:02:00.6]} 17. Rxd4 {[%clk 0:00:22]} 17... exd4 {[%clk 0:02:00.3]}
18. Qxd4 {[%clk 0:00:20.8]} 18... Ne6 {[%clk 0:01:52.6]} 19. Qg1 {[%clk
0:00:14.8]} 19... fxg3 {[%clk 0:01:49.7]} 20. hxg3 {[%clk 0:00:14.9]} 20... Qxe4
{[%clk 0:01:45.6]} 21. Bd3 {[%clk 0:00:15.1]} 21... Qe5 {[%clk 0:01:37]} 22. Qh2
{[%clk 0:00:13.7]} 22... Nxg5 {[%clk 0:01:23.7]} 23. Bxg5 {[%clk 0:00:12.2]}
23... Qxg5+ {[%clk 0:01:23.5]} 24. Kb1 {[%clk 0:00:12.1]} 24... h6 {[%clk
0:01:22.9]} 0-1

[Event "*** Titled Tuesday Blitz"]
[Site "Chess.com"]
[Date "2020.10.20"]
[Round "11"]
[White "Natalya_Buksa"]
[Black "1977Ivan"]
[Result "0-1"]
[WhiteElo "2555"]
[BlackElo "2688"]
[TimeControl "180+1"]
[EndTime "12:06:57 PDT"]
[Termination "1977Ivan won by resignation"]

1. d4 {[%clk 0:03:00.9]} 1... Nf6 {[%clk 0:02:57.6]} 2. Nc3 {[%clk 0:03:00.8]}
2... d5 {[%clk 0:02:56.2]} 3. Bf4 {[%clk 0:03:01.3]} 3... e6 {[%clk 0:02:55.3]}
4. Nb5 {[%clk 0:03:01.8]} 4... Bb4+ {[%clk 0:02:54.5]} 5. c3 {[%clk 0:03:00.5]}
5... Ba5 {[%clk 0:02:54.7]} 6. b4 {[%clk 0:03:00.2]} 6... Bb6 {[%clk 0:02:53.5]}
7. a4 {[%clk 0:02:57.9]} 7... a6 {[%clk 0:02:47.6]} 8. a5 {[%clk 0:02:51.2]}
8... axb5 {[%clk 0:02:47.5]} 9. axb6 {[%clk 0:02:51.7]} 9... Rxa1 {[%clk
0:02:43.4]} 10. Qxa1 {[%clk 0:02:52.1]} 10... Na6 {[%clk 0:02:27.2]} 11. bxc7
{[%clk 0:02:51.9]} 11... Nxc7 {[%clk 0:02:26.6]} 12. e3 {[%clk 0:02:52.3]} 12...
O-O {[%clk 0:02:25.6]} 13. Bd3 {[%clk 0:02:52.5]} 13... Bd7 {[%clk 0:02:24.1]}
14. Nf3 {[%clk 0:02:52.5]} 14... Na6 {[%clk 0:02:20]} 15. O-O {[%clk 0:02:51]}
15... Qe7 {[%clk 0:01:54.4]} 16. Rc1 {[%clk 0:02:44.3]} 16... Rc8 {[%clk
0:01:53.9]} 17. Qa5 {[%clk 0:02:42.3]} 17... Nxb4 {[%clk 0:01:47.9]} 18. Bb1
{[%clk 0:02:33.8]} 18... Ne4 {[%clk 0:01:43.9]} 19. Bxe4 {[%clk 0:02:19.1]}
19... dxe4 {[%clk 0:01:44.8]} 20. Ne5 {[%clk 0:02:16.8]} 20... Be8 {[%clk
0:01:41.1]} 21. f3 {[%clk 0:01:46.3]} 21... f6 {[%clk 0:01:38.8]} 22. Ng4 {[%clk
0:01:46.4]} 22... Nd3 {[%clk 0:01:36.2]} 23. Rb1 {[%clk 0:01:44.7]} 23... exf3
{[%clk 0:01:31.9]} 24. gxf3 {[%clk 0:01:43.7]} 24... Nxf4 {[%clk 0:01:28.9]} 25.
exf4 {[%clk 0:01:43.2]} 25... Qd6 {[%clk 0:01:23.1]} 26. Qa2 {[%clk 0:01:30.8]}
26... Rxc3 {[%clk 0:01:19.3]} 27. f5 {[%clk 0:01:30.8]} 27... Qxd4+ {[%clk
0:01:14.9]} 28. Kh1 {[%clk 0:01:31.2]} 28... Qd5 {[%clk 0:00:59.5]} 29. Qg2
{[%clk 0:01:30.2]} 29... Kf8 {[%clk 0:00:53.5]} 30. fxe6 {[%clk 0:01:27.2]}
30... Bc6 {[%clk 0:00:41.6]} 31. Re1 {[%clk 0:01:12]} 31... Qxf3 {[%clk
0:00:40.2]} 32. e7+ {[%clk 0:01:12.3]} 32... Ke8 {[%clk 0:00:39.8]} 0-1

[Event "*** Titled Tuesday Blitz"]
[Site "Chess.com"]
[Date "2020.10.20"]
[Round "11"]
[White "ZverevLev"]
[Black "grandcoach"]
[Result "1-0"]
[WhiteElo "2247"]
[BlackElo "2139"]
[TimeControl "180+1"]
[EndTime "12:07:00 PDT"]
[Termination "ZverevLev won on time"]

1. f4 {[%clk 0:02:58.9]} 1... c5 {[%clk 0:02:58.7]} 2. Nf3 {[%clk 0:02:58.6]}
2... Nc6 {[%clk 0:02:59.2]} 3. g3 {[%clk 0:02:57.6]} 3... g6 {[%clk 0:02:58.1]}
4. Bg2 {[%clk 0:02:57.6]} 4... Bg7 {[%clk 0:02:58.7]} 5. O-O {[%clk 0:02:58.1]}
5... d5 {[%clk 0:02:55.3]} 6. d3 {[%clk 0:02:57.4]} 6... Nf6 {[%clk 0:02:54.4]}
7. Nbd2 {[%clk 0:02:56.8]} 7... O-O {[%clk 0:02:54.4]} 8. e4 {[%clk 0:02:56.5]}
8... dxe4 {[%clk 0:02:47.9]} 9. dxe4 {[%clk 0:02:57.4]} 9... b6 {[%clk
0:02:25.2]} 10. c3 {[%clk 0:02:53.1]} 10... Ba6 {[%clk 0:02:24.1]} 11. Re1
{[%clk 0:02:51.5]} 11... Qd7 {[%clk 0:02:12.6]} 12. Qa4 {[%clk 0:02:48.5]} 12...
Na5 {[%clk 0:02:02.1]} 13. Qxd7 {[%clk 0:02:45.1]} 13... Nxd7 {[%clk 0:02:03]}
14. e5 {[%clk 0:02:45.7]} 14... Rad8 {[%clk 0:01:56.2]} 15. e6 {[%clk 0:02:42]}
15... fxe6 {[%clk 0:01:40.6]} 16. Ng5 {[%clk 0:02:40.2]} 16... Rf6 {[%clk
0:01:10.7]} 17. Nde4 {[%clk 0:02:35.9]} 17... Rf5 {[%clk 0:01:03.9]} 18. Bh3
{[%clk 0:02:30.7]} 18... Nf6 {[%clk 0:00:57.1]} 19. Bxf5 {[%clk 0:02:26.1]}
19... exf5 {[%clk 0:00:56.9]} 20. Nxf6+ {[%clk 0:02:23.1]} 20... Bxf6 {[%clk
0:00:51.3]} 21. Ne6 {[%clk 0:02:19.7]} 21... Rd3 {[%clk 0:00:48.9]} 22. Nc7
{[%clk 0:02:08.8]} 22... Bb7 {[%clk 0:00:45.6]} 23. Ne8 {[%clk 0:02:07.8]} 23...
Kf7 {[%clk 0:00:36.2]} 24. Nxf6 {[%clk 0:02:03.4]} 24... exf6 {[%clk 0:00:31.9]}
25. b3 {[%clk 0:01:59]} 25... Rxc3 {[%clk 0:00:24.1]} 26. Bd2 {[%clk 0:01:57.9]}
26... Rc2 {[%clk 0:00:23.5]} 27. Bxa5 {[%clk 0:01:57.2]} 27... bxa5 {[%clk
0:00:22.3]} 28. Rad1 {[%clk 0:01:55]} 28... Rg2+ {[%clk 0:00:20.8]} 29. Kf1
{[%clk 0:01:54.3]} 29... Bf3 {[%clk 0:00:09]} 30. Rd7+ {[%clk 0:01:50.4]} 30...
Kf8 {[%clk 0:00:07.3]} 31. Re3 {[%clk 0:01:50.1]} 31... Bc6 {[%clk 0:00:04.5]}
32. Rc7 {[%clk 0:01:47.5]} 32... Bd5 {[%clk 0:00:03.7]} 33. Rc8+ {[%clk
0:01:46.2]} 33... Kf7 {[%clk 0:00:03.2]} 34. Rxc5 {[%clk 0:01:46]} 1-0